[Event "Titled Tuesday Blitz February 14 Early 2023"]
[White "Oro, Faustino"]
[Black "Turzo, Attila"]
[WhiteFideId "20000197"]
[BlackFideId "704954"]
[WhiteElo "2269"]
[BlackElo "2279"]
[Result "0-1"]
[Round "07"]
[TimeControl "180+2"]
[Date "2023.02.15"]
[WhiteClock "0:00:15"]
[BlackClock "0:00:49"]

1. Nf3 {[%clk 0:02:59]}  c5 {[%clk 0:02:57]} 2. e4 {[%clk 0:02:58]}  d6 {[%clk 0:02:57]} 3. d4 {[%clk 0:02:57]}  cxd4 {[%clk 0:02:58]} 4. Nxd4 {[%clk 0:02:58]}  Nf6 {[%clk 0:02:59]} 5. Nc3 {[%clk 0:02:58]}  a6 {[%clk 0:02:59]} 6. f3 {[%clk 0:02:56]}  e5 {[%clk 0:02:58]} 7. Nb3 {[%clk 0:02:57]}  Be6 {[%clk 0:02:58]} 8. Be3 {[%clk 0:02:57]}  Nbd7 {[%clk 0:02:59]} 9. Qd2 {[%clk 0:02:55]}  h5 {[%clk 0:02:58]} 10. Nd5 {[%clk 0:02:55]}  Nxd5 {[%clk 0:02:55]} 11. exd5 {[%clk 0:02:56]}  Bf5 {[%clk 0:02:56]} 12. Bd3 {[%clk 0:02:56]}  Bxd3 {[%clk 0:02:56]} 13. Qxd3 {[%clk 0:02:57]}  Be7 {[%clk 0:02:56]} 14. c4 {[%clk 0:02:56]}  a5 {[%clk 0:02:53]} 15. O-O {[%clk 0:02:54]}  O-O {[%clk 0:02:47]} 16. Nd2 {[%clk 0:02:46]}  Bg5 {[%clk 0:02:39]} 17. Bf2 {[%clk 0:02:45]}  Bxd2 {[%clk 0:02:39]} 18. Qxd2 {[%clk 0:02:46]}  Qc7 {[%clk 0:02:31]} 19. b3 {[%clk 0:02:45]}  Nc5 {[%clk 0:02:29]} 20. Rfe1 {[%clk 0:02:35]}  b6 {[%clk 0:02:19]} 21. Rad1 {[%clk 0:02:33]}  f5 {[%clk 0:02:17]} 22. Kh1 {[%clk 0:02:02]}  f4 {[%clk 0:02:15]} 23. Qc2 {[%clk 0:01:51]}  Qf7 {[%clk 0:02:15]} 24. a3 {[%clk 0:01:48]}  Qf5 {[%clk 0:02:14]} 25. Qxf5 {[%clk 0:01:41]}  Rxf5 {[%clk 0:02:15]} 26. b4 {[%clk 0:01:42]}  axb4 {[%clk 0:02:14]} 27. axb4 {[%clk 0:01:42]}  Nd7 {[%clk 0:02:14]} 28. Ra1 {[%clk 0:01:41]}  Rff8 {[%clk 0:02:14]} 29. Kg1 {[%clk 0:01:39]}  Kf7 {[%clk 0:02:12]} 30. Kf1 {[%clk 0:01:39]}  Rfc8 {[%clk 0:02:10]} 31. Rxa8 {[%clk 0:01:10]}  Rxa8 {[%clk 0:02:09]} 32. Rc1 {[%clk 0:01:10]}  Ra4 {[%clk 0:01:55]} 33. Be1 {[%clk 0:01:01]}  g5 {[%clk 0:01:48]} 34. Ke2 {[%clk 0:00:59]}  Ra2+ {[%clk 0:01:46]} 35. Bd2 {[%clk 0:00:59]}  g4 {[%clk 0:01:38]} 36. Kd3 {[%clk 0:00:48]}  Kg6 {[%clk 0:01:30]} 37. Rc2 {[%clk 0:00:38]}  Rxc2 {[%clk 0:01:28]} 38. Kxc2 {[%clk 0:00:39]}  Kf5 {[%clk 0:01:26]} 39. Kd3 {[%clk 0:00:39]}  h4 {[%clk 0:01:26]} 40. Be1 {[%clk 0:00:34]}  h3 {[%clk 0:01:24]} 41. fxg4+ {[%clk 0:00:29]}  Kxg4 {[%clk 0:01:24]} 42. gxh3+ {[%clk 0:00:27]}  Kxh3 {[%clk 0:01:20]} 43. Ke4 {[%clk 0:00:27]}  Kxh2 {[%clk 0:01:11]} 44. Kf5 {[%clk 0:00:27]}  f3 {[%clk 0:01:08]} 45. Ke6 {[%clk 0:00:27]}  e4 {[%clk 0:01:06]} 46. Kxd7 {[%clk 0:00:23]}  e3 {[%clk 0:01:07]} 47. c5 {[%clk 0:00:22]}  bxc5 {[%clk 0:01:01]} 48. bxc5 {[%clk 0:00:22]}  dxc5 {[%clk 0:00:58]} 49. Kc6 {[%clk 0:00:15]}  f2 {[%clk 0:00:58]} 50. Bc3 {[%clk 0:00:15]}  f1=Q {[%clk 0:00:55]} 51. d6 {[%clk 0:00:16]}  Qf3+ {[%clk 0:00:53]} 52. Kc7 {[%clk 0:00:15]}  e2 {[%clk 0:00:51]} 53. d7 {[%clk 0:00:15]}  Qxc3 {[%clk 0:00:49]} 54. d8=Q {[%clk 0:00:15]}  Qa5+ {[%clk 0:00:49]} 0-1


[Site "https://www.chess.com"]

[Event "Titled Tuesday Blitz February 14 Early 2023"]
[White "Kavutskiy, Konstantin"]
[Black "Escalona Landi, Samid Eduardo"]
[WhiteFideId "2026384"]
[BlackFideId "3937437"]
[WhiteElo "2414"]
[BlackElo "2218"]
[Result "0-1"]
[Round "07"]
[TimeControl "180+2"]
[Date "2023.02.15"]
[WhiteClock "0:00:06"]
[BlackClock "0:01:07"]

1. d4 {[%clk 0:03:00]}  g6 {[%clk 0:02:52]} 2. e4 {[%clk 0:02:59]}  Bg7 {[%clk 0:02:52]} 3. Nc3 {[%clk 0:02:59]}  d6 {[%clk 0:02:53]} 4. Be3 {[%clk 0:02:58]}  a6 {[%clk 0:02:53]} 5. Qd2 {[%clk 0:02:57]}  b5 {[%clk 0:02:53]} 6. a3 {[%clk 0:02:54]}  Bb7 {[%clk 0:02:52]} 7. f3 {[%clk 0:02:50]}  Nd7 {[%clk 0:02:53]} 8. g4 {[%clk 0:02:47]}  c5 {[%clk 0:02:52]} 9. d5 {[%clk 0:02:33]}  Ngf6 {[%clk 0:02:45]} 10. h4 {[%clk 0:02:30]}  h6 {[%clk 0:02:36]} 11. Nh3 {[%clk 0:02:21]}  Ne5 {[%clk 0:02:29]} 12. Be2 {[%clk 0:02:19]}  e6 {[%clk 0:02:15]} 13. g5 {[%clk 0:02:13]}  hxg5 {[%clk 0:02:14]} 14. Bxg5 {[%clk 0:02:06]}  exd5 {[%clk 0:02:11]} 15. exd5 {[%clk 0:02:03]}  Qc7 {[%clk 0:01:40]} 16. f4 {[%clk 0:01:54]}  Ned7 {[%clk 0:01:38]} 17. Qe3+ {[%clk 0:01:50]}  Kf8 {[%clk 0:01:38]} 18. O-O-O {[%clk 0:00:47]}  Re8 {[%clk 0:01:37]} 19. Qf3 {[%clk 0:00:40]}  b4 {[%clk 0:01:37]} 20. Na4 {[%clk 0:00:36]}  Qa5 {[%clk 0:01:26]} 21. b3 {[%clk 0:00:33]}  bxa3 {[%clk 0:01:27]} 22. Kb1 {[%clk 0:00:32]}  Nb6 {[%clk 0:01:13]} 23. Ka2 {[%clk 0:00:16]}  Nfxd5 {[%clk 0:01:07]} 24. Qd3 {[%clk 0:00:06]}  Nb4+ {[%clk 0:01:07]} 0-1


[Site "https://www.chess.com"]

[Event "Titled Tuesday Blitz February 14 Early 2023"]
[White "Belozerov, Andrei"]
[Black "Khamdamova, Afruza"]
[WhiteFideId "4120213"]
[BlackFideId "14210444"]
[WhiteElo "2461"]
[BlackElo "2162"]
[Result "1-0"]
[Round "07"]
[TimeControl "180+2"]
[Date "2023.02.15"]
[WhiteClock "0:00:22"]
[BlackClock "0:00:47"]

1. e4 {[%clk 0:03:00]}  e6 {[%clk 0:02:59]} 2. d4 {[%clk 0:03:00]}  d5 {[%clk 0:02:59]} 3. Nd2 {[%clk 0:03:01]}  Nf6 {[%clk 0:02:57]} 4. e5 {[%clk 0:03:00]}  Nfd7 {[%clk 0:02:58]} 5. Bd3 {[%clk 0:03:01]}  c5 {[%clk 0:02:58]} 6. c3 {[%clk 0:03:02]}  Nc6 {[%clk 0:02:58]} 7. Ne2 {[%clk 0:03:02]}  f6 {[%clk 0:02:57]} 8. Nf4 {[%clk 0:02:56]}  Qe7 {[%clk 0:02:46]} 9. exf6 {[%clk 0:02:56]}  Nxf6 {[%clk 0:02:45]} 10. Nf3 {[%clk 0:02:53]}  cxd4 {[%clk 0:02:44]} 11. cxd4 {[%clk 0:02:52]}  Bd7 {[%clk 0:02:40]} 12. O-O {[%clk 0:02:52]}  Ne4 {[%clk 0:02:25]} 13. Re1 {[%clk 0:02:45]}  Qf6 {[%clk 0:02:05]} 14. Nh5 {[%clk 0:02:06]}  Qf7 {[%clk 0:01:58]} 15. Ng3 {[%clk 0:01:54]}  Nxg3 {[%clk 0:01:56]} 16. hxg3 {[%clk 0:01:54]}  Bd6 {[%clk 0:01:54]} 17. Ng5 {[%clk 0:01:50]}  Qf6 {[%clk 0:01:51]} 18. Qh5+ {[%clk 0:01:12]}  g6 {[%clk 0:01:51]} 19. Qh4 {[%clk 0:01:06]}  O-O-O {[%clk 0:01:32]} 20. Bf4 {[%clk 0:00:51]}  Bxf4 {[%clk 0:01:28]} 21. Qxf4 {[%clk 0:00:50]}  Qxf4 {[%clk 0:01:28]} 22. gxf4 {[%clk 0:00:50]}  Rde8 {[%clk 0:01:22]} 23. Nf7 {[%clk 0:00:44]}  Nxd4 {[%clk 0:01:17]} 24. Nxh8 {[%clk 0:00:43]}  Rxh8 {[%clk 0:01:17]} 25. Rad1 {[%clk 0:00:43]}  Nc6 {[%clk 0:01:13]} 26. g3 {[%clk 0:00:38]}  Rf8 {[%clk 0:01:11]} 27. Kg2 {[%clk 0:00:38]}  Kc7 {[%clk 0:01:11]} 28. Re3 {[%clk 0:00:37]}  Kd6 {[%clk 0:01:11]} 29. Be2 {[%clk 0:00:33]}  a6 {[%clk 0:00:57]} 30. Bg4 {[%clk 0:00:32]}  h5 {[%clk 0:00:55]} 31. Be2 {[%clk 0:00:31]}  b5 {[%clk 0:00:55]} 32. Bd3 {[%clk 0:00:30]}  Rf6 {[%clk 0:00:53]} 33. Rde1 {[%clk 0:00:30]}  d4 {[%clk 0:00:51]} 34. Re5 {[%clk 0:00:29]}  Nxe5 {[%clk 0:00:51]} 35. fxe5+ {[%clk 0:00:29]}  Ke7 {[%clk 0:00:50]} 36. exf6+ {[%clk 0:00:30]}  Kxf6 {[%clk 0:00:51]} 37. f4 {[%clk 0:00:29]}  a5 {[%clk 0:00:50]} 38. Re5 {[%clk 0:00:28]}  b4 {[%clk 0:00:48]} 39. Rxa5 {[%clk 0:00:28]}  Bc6+ {[%clk 0:00:48]} 40. Kf2 {[%clk 0:00:27]}  Bd5 {[%clk 0:00:47]} 41. Rxd5 {[%clk 0:00:26]}  exd5 {[%clk 0:00:47]} 42. a4 {[%clk 0:00:27]}  bxa3 {[%clk 0:00:47]} 43. bxa3 {[%clk 0:00:26]}  Ke6 {[%clk 0:00:46]} 44. Bxg6 {[%clk 0:00:25]}  Kd6 {[%clk 0:00:46]} 45. Bxh5 {[%clk 0:00:25]}  Kc5 {[%clk 0:00:46]} 46. Be2 {[%clk 0:00:24]}  Kb6 {[%clk 0:00:45]} 47. g4 {[%clk 0:00:23]}  Kc5 {[%clk 0:00:46]} 48. g5 {[%clk 0:00:23]}  Kd6 {[%clk 0:00:47]} 49. a4 {[%clk 0:00:22]}  Kc6 {[%clk 0:00:47]} 50. g6 {[%clk 0:00:22]} 1-0


[Site "https://www.chess.com"]

[Event "Titled Tuesday Blitz February 14 Early 2023"]
[White "Tologon tegin, Semetei"]
[Black "Nguyen Hong Nhung"]
[WhiteFideId "13800574"]
[BlackFideId "12412201"]
[WhiteElo "2372"]
[BlackElo "2003"]
[Result "1-0"]
[Round "07"]
[TimeControl "180+2"]
[Date "2023.02.15"]
[WhiteClock "0:00:41"]
[BlackClock "0:00:03"]

1. Nf3 {[%clk 0:02:57]}  f5 {[%clk 0:02:59]} 2. d3 {[%clk 0:02:56]}  Nf6 {[%clk 0:02:59]} 3. Nc3 {[%clk 0:02:56]}  d6 {[%clk 0:02:59]} 4. e4 {[%clk 0:02:55]}  e5 {[%clk 0:03:00]} 5. exf5 {[%clk 0:02:53]}  Bxf5 {[%clk 0:03:01]} 6. d4 {[%clk 0:02:54]}  e4 {[%clk 0:02:48]} 7. Nh4 {[%clk 0:02:48]}  Bg4 {[%clk 0:02:48]} 8. Be2 {[%clk 0:02:46]}  Bxe2 {[%clk 0:02:48]} 9. Qxe2 {[%clk 0:02:46]}  d5 {[%clk 0:02:46]} 10. f3 {[%clk 0:02:39]}  Nc6 {[%clk 0:02:42]} 11. Be3 {[%clk 0:02:35]}  Qd7 {[%clk 0:02:37]} 12. fxe4 {[%clk 0:02:33]}  dxe4 {[%clk 0:02:35]} 13. O-O-O {[%clk 0:02:31]}  O-O-O {[%clk 0:02:31]} 14. d5 {[%clk 0:02:26]}  Ne5 {[%clk 0:02:28]} 15. Bxa7 {[%clk 0:02:26]}  g5 {[%clk 0:01:56]} 16. Rhf1 {[%clk 0:02:22]}  Nfg4 {[%clk 0:01:34]} 17. Nf5 {[%clk 0:02:18]}  Bb4 {[%clk 0:01:30]} 18. Nxe4 {[%clk 0:02:14]}  Qa4 {[%clk 0:01:29]} 19. Kb1 {[%clk 0:02:13]}  Qxa7 {[%clk 0:01:28]} 20. h3 {[%clk 0:02:10]}  Nh2 {[%clk 0:01:03]} 21. Rh1 {[%clk 0:02:09]}  Rhf8 {[%clk 0:01:01]} 22. Nd4 {[%clk 0:02:05]}  Rxd5 {[%clk 0:00:51]} 23. Ne6 {[%clk 0:01:59]}  Rxd1+ {[%clk 0:00:45]} 24. Qxd1 {[%clk 0:02:00]}  Re8 {[%clk 0:00:36]} 25. N4xg5 {[%clk 0:01:35]}  h6 {[%clk 0:00:27]} 26. Qh5 {[%clk 0:01:34]}  Qa4 {[%clk 0:00:18]} 27. Qxh6 {[%clk 0:01:13]}  Nc4 {[%clk 0:00:18]} 28. Qg7 {[%clk 0:01:07]}  Nd2+ {[%clk 0:00:13]} 29. Ka1 {[%clk 0:01:06]}  Re7 {[%clk 0:00:10]} 30. Qf8+ {[%clk 0:01:05]}  Re8 {[%clk 0:00:11]} 31. Qf5 {[%clk 0:00:52]}  Kb8 {[%clk 0:00:05]} 32. Rxh2 {[%clk 0:00:51]}  Nc4 {[%clk 0:00:04]} 33. Rh1 {[%clk 0:00:50]}  Nd6 {[%clk 0:00:02]} 34. Qg4 {[%clk 0:00:46]}  Qa5 {[%clk 0:00:01]} 35. Rd1 {[%clk 0:00:44]}  Bc5 {[%clk 0:00:01]} 36. Nxc5 {[%clk 0:00:42]}  Qxc5 {[%clk 0:00:02]} 37. h4 {[%clk 0:00:42]}  Qc3 {[%clk 0:00:03]} 38. bxc3 {[%clk 0:00:41]} 1-0


[Site "https://www.chess.com"]

[Event "Titled Tuesday Blitz February 14 Early 2023"]
[White "Maksimenko, Viktor"]
[Black "Dragomirescu, Angela"]
[WhiteFideId "13710478"]
[BlackFideId "1209914"]
[WhiteElo "2196"]
[BlackElo "2130"]
[Result "1-0"]
[Round "07"]
[TimeControl "180+2"]
[Date "2023.02.15"]
[WhiteClock "0:00:09"]
[BlackClock "0:00:22"]

1. d4 {[%clk 0:02:45]}  Nf6 {[%clk 0:02:59]} 2. c4 {[%clk 0:02:46]}  e6 {[%clk 0:03:00]} 3. Nf3 {[%clk 0:02:45]}  Bb4+ {[%clk 0:02:59]} 4. Bd2 {[%clk 0:02:45]}  Qe7 {[%clk 0:03:00]} 5. g3 {[%clk 0:02:44]}  Nc6 {[%clk 0:02:59]} 6. Nc3 {[%clk 0:02:43]}  d6 {[%clk 0:02:54]} 7. Bg2 {[%clk 0:02:42]}  Bxc3 {[%clk 0:02:55]} 8. Bxc3 {[%clk 0:02:42]}  Ne4 {[%clk 0:02:56]} 9. Rc1 {[%clk 0:02:41]}  O-O {[%clk 0:02:56]} 10. d5 {[%clk 0:02:40]}  Nd8 {[%clk 0:02:49]} 11. dxe6 {[%clk 0:02:38]}  Nxe6 {[%clk 0:02:49]} 12. O-O {[%clk 0:02:38]}  Nxc3 {[%clk 0:02:49]} 13. Rxc3 {[%clk 0:02:39]}  a5 {[%clk 0:02:49]} 14. Nd4 {[%clk 0:02:37]}  Nc5 {[%clk 0:02:49]} 15. Rc1 {[%clk 0:02:29]}  Re8 {[%clk 0:02:38]} 16. Qc2 {[%clk 0:02:23]}  Bg4 {[%clk 0:02:35]} 17. Rfe1 {[%clk 0:02:20]}  Qf6 {[%clk 0:02:30]} 18. e3 {[%clk 0:02:18]}  Re7 {[%clk 0:02:16]} 19. b3 {[%clk 0:02:09]}  Rae8 {[%clk 0:02:15]} 20. h3 {[%clk 0:02:10]}  Bh5 {[%clk 0:02:08]} 21. Qd2 {[%clk 0:01:56]}  b6 {[%clk 0:01:49]} 22. Nc6 {[%clk 0:01:46]}  Re6 {[%clk 0:01:48]} 23. Qd4 {[%clk 0:01:44]}  Qxd4 {[%clk 0:01:38]} 24. Nxd4 {[%clk 0:01:45]}  Re5 {[%clk 0:01:39]} 25. Rc3 {[%clk 0:01:43]}  Bg6 {[%clk 0:01:37]} 26. Rd1 {[%clk 0:01:35]}  Be4 {[%clk 0:01:36]} 27. Nc6 {[%clk 0:01:31]}  Rf5 {[%clk 0:01:21]} 28. g4 {[%clk 0:01:27]}  Bxg2 {[%clk 0:01:17]} 29. Nd4 {[%clk 0:01:15]}  Bf3 {[%clk 0:01:06]} 30. Re1 {[%clk 0:00:59]}  Rf4 {[%clk 0:01:01]} 31. Rcc1 {[%clk 0:00:57]}  Nd3 {[%clk 0:00:35]} 32. exf4 {[%clk 0:00:53]}  Nxe1 {[%clk 0:00:30]} 33. Rc3 {[%clk 0:00:52]}  Bb7 {[%clk 0:00:27]} 34. Kh2 {[%clk 0:00:47]}  Ng2 {[%clk 0:00:25]} 35. Kg3 {[%clk 0:00:46]}  h6 {[%clk 0:00:20]} 36. Nb5 {[%clk 0:00:42]}  Re7 {[%clk 0:00:19]} 37. Nd4 {[%clk 0:00:40]}  g5 {[%clk 0:00:19]} 38. fxg5 {[%clk 0:00:37]}  hxg5 {[%clk 0:00:19]} 39. Nf5 {[%clk 0:00:34]}  Re6 {[%clk 0:00:20]} 40. Nd4 {[%clk 0:00:31]}  Re5 {[%clk 0:00:18]} 41. Nb5 {[%clk 0:00:24]}  Re7 {[%clk 0:00:17]} 42. Nd4 {[%clk 0:00:20]}  Nf4 {[%clk 0:00:17]} 43. h4 {[%clk 0:00:20]}  Ne2+ {[%clk 0:00:15]} 44. Nxe2 {[%clk 0:00:20]}  Rxe2 {[%clk 0:00:16]} 45. hxg5 {[%clk 0:00:21]}  Rxa2 {[%clk 0:00:17]} 46. Re3 {[%clk 0:00:20]}  Rb2 {[%clk 0:00:17]} 47. f4 {[%clk 0:00:18]}  Rg2+ {[%clk 0:00:16]} 48. Kh4 {[%clk 0:00:17]}  Rg1 {[%clk 0:00:17]} 49. f5 {[%clk 0:00:16]}  Rh1+ {[%clk 0:00:15]} 50. Kg3 {[%clk 0:00:17]}  Rg1+ {[%clk 0:00:16]} 51. Kf4 {[%clk 0:00:17]}  Rf1+ {[%clk 0:00:17]} 52. Kg3 {[%clk 0:00:17]}  Rf3+ {[%clk 0:00:16]} 53. Rxf3 {[%clk 0:00:17]}  Bxf3 {[%clk 0:00:17]} 54. Kxf3 {[%clk 0:00:18]}  c6 {[%clk 0:00:18]} 55. Ke4 {[%clk 0:00:18]}  b5 {[%clk 0:00:19]} 56. cxb5 {[%clk 0:00:16]}  cxb5 {[%clk 0:00:20]} 57. Kd5 {[%clk 0:00:14]}  Kg7 {[%clk 0:00:20]} 58. Kd4 {[%clk 0:00:14]}  Kf8 {[%clk 0:00:20]} 59. Kd5 {[%clk 0:00:13]}  Ke7 {[%clk 0:00:21]} 60. Kd4 {[%clk 0:00:12]}  Kd7 {[%clk 0:00:21]} 61. Kd5 {[%clk 0:00:12]}  Kd8 {[%clk 0:00:20]} 62. Kd4 {[%clk 0:00:09]}  Ke8 {[%clk 0:00:20]} 63. Kd5 {[%clk 0:00:10]}  f6 {[%clk 0:00:21]} 64. gxf6 {[%clk 0:00:09]}  Kf7 {[%clk 0:00:20]} 65. g5 {[%clk 0:00:10]}  Kf8 {[%clk 0:00:20]} 66. g6 {[%clk 0:00:08]}  Kg8 {[%clk 0:00:20]} 67. Ke6 {[%clk 0:00:08]}  a4 {[%clk 0:00:21]} 68. bxa4 {[%clk 0:00:09]}  bxa4 {[%clk 0:00:22]} 69. f7+ {[%clk 0:00:09]} 1-0


[Site "https://www.chess.com"]

[Event "Titled Tuesday Blitz February 14 Early 2023"]
[White "Baches Garcia, Guillermo"]
[Black "Al-Tarboush, Ward"]
[WhiteFideId "2209764"]
[BlackFideId "7601450"]
[WhiteElo "2327"]
[BlackElo "2256"]
[Result "1-0"]
[Round "07"]
[TimeControl "180+2"]
[Date "2023.02.15"]
[WhiteClock "0:00:13"]
[BlackClock "0:00:17"]

1. e4 {[%clk 0:03:00]}  c5 {[%clk 0:02:59]} 2. Nf3 {[%clk 0:03:01]}  Nc6 {[%clk 0:02:59]} 3. d4 {[%clk 0:03:01]}  cxd4 {[%clk 0:03:00]} 4. Nxd4 {[%clk 0:03:02]}  Nf6 {[%clk 0:03:00]} 5. Nc3 {[%clk 0:03:02]}  e5 {[%clk 0:03:01]} 6. Ndb5 {[%clk 0:03:01]}  d6 {[%clk 0:03:01]} 7. Nd5 {[%clk 0:03:01]}  Nxd5 {[%clk 0:03:01]} 8. exd5 {[%clk 0:03:02]}  Nb8 {[%clk 0:03:01]} 9. a4 {[%clk 0:03:02]}  Be7 {[%clk 0:03:01]} 10. Be2 {[%clk 0:03:02]}  O-O {[%clk 0:03:00]} 11. Bd2 {[%clk 0:03:02]}  Nd7 {[%clk 0:02:59]} 12. a5 {[%clk 0:03:01]}  a6 {[%clk 0:02:59]} 13. Na3 {[%clk 0:03:00]}  f5 {[%clk 0:02:59]} 14. Nc4 {[%clk 0:03:00]}  Nf6 {[%clk 0:02:59]} 15. Bb4 {[%clk 0:02:54]}  f4 {[%clk 0:02:58]} 16. Nxe5 {[%clk 0:02:42]}  dxe5 {[%clk 0:02:53]} 17. d6 {[%clk 0:02:41]}  Bxd6 {[%clk 0:02:53]} 18. Qxd6 {[%clk 0:02:31]}  Qxd6 {[%clk 0:02:50]} 19. Bxd6 {[%clk 0:02:31]}  Re8 {[%clk 0:02:50]} 20. O-O {[%clk 0:02:06]}  Bf5 {[%clk 0:02:50]} 21. c4 {[%clk 0:01:50]}  Rad8 {[%clk 0:02:46]} 22. c5 {[%clk 0:01:41]}  Ne4 {[%clk 0:02:46]} 23. Bc4+ {[%clk 0:01:09]}  Be6 {[%clk 0:02:46]} 24. Bxe6+ {[%clk 0:00:56]}  Rxe6 {[%clk 0:02:47]} 25. Bc7 {[%clk 0:00:54]}  Rd7 {[%clk 0:02:47]} 26. Bb6 {[%clk 0:00:49]}  Kf7 {[%clk 0:02:17]} 27. Rfd1 {[%clk 0:00:50]}  Nd2 {[%clk 0:02:06]} 28. f3 {[%clk 0:00:34]}  Ke7 {[%clk 0:02:01]} 29. Kf2 {[%clk 0:00:33]}  e4 {[%clk 0:02:00]} 30. fxe4 {[%clk 0:00:31]}  Nxe4+ {[%clk 0:02:01]} 31. Kf3 {[%clk 0:00:28]}  Nd2+ {[%clk 0:01:59]} 32. Kf2 {[%clk 0:00:27]}  Ne4+ {[%clk 0:01:58]} 33. Kf3 {[%clk 0:00:28]}  g5 {[%clk 0:01:36]} 34. Rxd7+ {[%clk 0:00:26]}  Kxd7 {[%clk 0:01:37]} 35. h4 {[%clk 0:00:23]}  h6 {[%clk 0:01:21]} 36. hxg5 {[%clk 0:00:22]}  hxg5 {[%clk 0:01:22]} 37. Rh1 {[%clk 0:00:22]}  Kc6 {[%clk 0:01:14]} 38. Rh7 {[%clk 0:00:20]}  Nf6 {[%clk 0:01:15]} 39. Rc7+ {[%clk 0:00:20]}  Kb5 {[%clk 0:01:15]} 40. Rxb7 {[%clk 0:00:20]}  Re3+ {[%clk 0:01:16]} 41. Kf2 {[%clk 0:00:19]}  Ne4+ {[%clk 0:01:10]} 42. Kf1 {[%clk 0:00:17]}  Ng3+ {[%clk 0:01:10]} 43. Kf2 {[%clk 0:00:17]}  Kc6 {[%clk 0:01:01]} 44. Rc7+ {[%clk 0:00:16]}  Kd5 {[%clk 0:01:02]} 45. c6 {[%clk 0:00:16]}  Rb3 {[%clk 0:00:55]} 46. Rc8 {[%clk 0:00:15]}  g4 {[%clk 0:00:50]} 47. c7 {[%clk 0:00:14]}  Rxb2+ {[%clk 0:00:50]} 48. Ke1 {[%clk 0:00:15]}  Rb1+ {[%clk 0:00:50]} 49. Kd2 {[%clk 0:00:14]}  Ne4+ {[%clk 0:00:46]} 50. Kc2 {[%clk 0:00:14]}  Nd6 {[%clk 0:00:20]} 51. Rd8 {[%clk 0:00:14]}  Rb4 {[%clk 0:00:13]} 52. Rxd6+ {[%clk 0:00:13]}  Kxd6 {[%clk 0:00:14]} 53. c8=Q {[%clk 0:00:13]}  Kd5 {[%clk 0:00:15]} 54. Qxg4 {[%clk 0:00:12]}  f3 {[%clk 0:00:13]} 55. Qxb4 {[%clk 0:00:11]}  fxg2 {[%clk 0:00:12]} 56. Qc5+ {[%clk 0:00:12]}  Ke6 {[%clk 0:00:13]} 57. Qg1 {[%clk 0:00:12]}  Kd5 {[%clk 0:00:13]} 58. Kb1 {[%clk 0:00:12]}  Kc4 {[%clk 0:00:13]} 59. Ka2 {[%clk 0:00:13]}  Kb5 {[%clk 0:00:13]} 60. Ka1 {[%clk 0:00:13]}  Ka4 {[%clk 0:00:14]} 61. Qxg2 {[%clk 0:00:13]}  Kb3 {[%clk 0:00:14]} 62. Qg3+ {[%clk 0:00:13]}  Kc2 {[%clk 0:00:14]} 63. Qe5 {[%clk 0:00:12]}  Kd1 {[%clk 0:00:14]} 64. Qc5 {[%clk 0:00:12]}  Ke2 {[%clk 0:00:14]} 65. Ka2 {[%clk 0:00:12]}  Kd1 {[%clk 0:00:15]} 66. Ka3 {[%clk 0:00:12]}  Kd2 {[%clk 0:00:15]} 67. Kb4 {[%clk 0:00:13]}  Kd1 {[%clk 0:00:16]} 68. Qc3 {[%clk 0:00:13]}  Ke2 {[%clk 0:00:16]} 69. Kc5 {[%clk 0:00:12]}  Kd1 {[%clk 0:00:16]} 70. Kc6 {[%clk 0:00:13]}  Ke2 {[%clk 0:00:16]} 71. Kb7 {[%clk 0:00:13]}  Kd1 {[%clk 0:00:17]} 72. Qb2 {[%clk 0:00:12]}  Ke1 {[%clk 0:00:16]} 73. Kxa6 {[%clk 0:00:12]}  Kd1 {[%clk 0:00:16]} 74. Kb7 {[%clk 0:00:13]}  Ke1 {[%clk 0:00:17]} 75. a6 {[%clk 0:00:13]} 1-0


[Site "https://www.chess.com"]